[Event "Live Chess"]
[Site "Chess.com"]
[Date "2023.05.20"]
[Round "-"]
[White "JanMur7"]
[Black "domrobson"]
[Result "0-1"]
[WhiteElo "1960"]
[BlackElo "1742"]
[TimeControl "300"]
[EndTime "10:33:37 PDT"]
[Termination "domrobson won by checkmate"]

1. e4 {[%clk 0:04:58.5]} 1... e5 {[%clk 0:04:59.2]} 2. Nf3 {[%clk 0:04:57.4]}
2... Nc6 {[%clk 0:04:57.9]} 3. Nc3 {[%clk 0:04:55.9]} 3... Nf6 {[%clk
0:04:57.1]} 4. Nxe5 {[%clk 0:04:54.6]} 4... Nxe5 {[%clk 0:04:55.7]} 5. d4 {[%clk
0:04:53.8]} 5... Ng6 {[%clk 0:04:55.4]} 6. e5 {[%clk 0:04:52.9]} 6... Ng8 {[%clk
0:04:55]} 7. Bc4 {[%clk 0:04:52]} 7... d6 {[%clk 0:04:53.4]} 8. Qf3 {[%clk
0:04:50.6]} 8... Be6 {[%clk 0:04:49.6]} 9. Qxb7 {[%clk 0:04:48.9]} 9... Bxc4
{[%clk 0:04:42.7]} 10. Qc6+ {[%clk 0:04:47.9]} 10... Ke7 {[%clk 0:04:36.9]} 11.
Qxc4 {[%clk 0:04:46.7]} 11... Qd7 {[%clk 0:04:20.4]} 12. O-O {[%clk 0:04:20.5]}
12... dxe5 {[%clk 0:03:55.5]} 13. Nd5+ {[%clk 0:04:04.1]} 13... Kd8 {[%clk
0:03:50.5]} 14. Bg5+ {[%clk 0:04:00.6]} 14... f6 {[%clk 0:03:45.4]} 15. Be3
{[%clk 0:03:53.4]} 15... Bd6 {[%clk 0:03:37.6]} 16. dxe5 {[%clk 0:03:50.5]}
16... Nxe5 {[%clk 0:03:33.4]} 17. Qe4 {[%clk 0:03:46.9]} 17... Rc8 {[%clk
0:03:08.7]} 18. c4 {[%clk 0:03:37.3]} 18... Ne7 {[%clk 0:03:05.4]} 19. c5 {[%clk
0:03:32.9]} 19... Nxd5 {[%clk 0:02:53.4]} 20. Qxd5 {[%clk 0:03:29.1]} 20... Be7
{[%clk 0:02:44.7]} 21. Qe4 {[%clk 0:03:22.3]} 21... Ke8 {[%clk 0:02:34.5]} 22.
Rad1 {[%clk 0:03:11.5]} 22... Qc6 {[%clk 0:02:32]} 23. Qxc6+ {[%clk 0:03:04.3]}
23... Nxc6 {[%clk 0:02:30.4]} 24. Rfe1 {[%clk 0:02:53.5]} 24... Rd8 {[%clk
0:02:27]} 25. Bf4 {[%clk 0:02:44.9]} 25... Rd7 {[%clk 0:02:13.3]} 26. Rxd7
{[%clk 0:02:39.3]} 26... Kxd7 {[%clk 0:02:11]} 27. Rd1+ {[%clk 0:02:39.2]} 27...
Kc8 {[%clk 0:02:07.9]} 28. a3 {[%clk 0:02:36.7]} 28... a5 {[%clk 0:02:04.8]} 29.
h4 {[%clk 0:02:31.5]} 29... Rd8 {[%clk 0:02:02.6]} 30. Rc1 {[%clk 0:02:29.6]}
30... Rd5 {[%clk 0:01:59.5]} 31. b4 {[%clk 0:02:22.1]} 31... axb4 {[%clk
0:01:56.9]} 32. axb4 {[%clk 0:02:22]} 32... Nxb4 {[%clk 0:01:55.2]} 33. c6
{[%clk 0:02:19.4]} 33... Rc5 {[%clk 0:01:49.1]} 34. Re1 {[%clk 0:02:03.5]} 34...
Nxc6 {[%clk 0:01:45.6]} 35. h5 {[%clk 0:01:59.7]} 35... Rxh5 {[%clk 0:01:40.8]}
36. Rc1 {[%clk 0:01:55]} 36... Rc5 {[%clk 0:01:38.5]} 37. Re1 {[%clk 0:01:50.9]}
37... Bd6 {[%clk 0:01:35.2]} 38. Be3 {[%clk 0:01:47]} 38... Re5 {[%clk
0:01:32.9]} 39. Rc1 {[%clk 0:01:45.7]} 39... Ne7 {[%clk 0:01:23]} 40. Bf4 {[%clk
0:01:42.6]} 40... Re6 {[%clk 0:01:19.9]} 41. Be3 {[%clk 0:01:40.5]} 41... g5
{[%clk 0:01:18]} 42. Ra1 {[%clk 0:01:38.7]} 42... Kd7 {[%clk 0:01:16.5]} 43. Ra8
{[%clk 0:01:36.9]} 43... h5 {[%clk 0:01:14.2]} 44. Rh8 {[%clk 0:01:34.7]} 44...
h4 {[%clk 0:01:13.1]} 45. Kf1 {[%clk 0:01:29.2]} 45... Be5 {[%clk 0:01:12.3]}
46. Ra8 {[%clk 0:01:25.9]} 46... Nf5 {[%clk 0:01:06.7]} 47. Bc5 {[%clk
0:01:17.9]} 47... Rc6 {[%clk 0:01:04.6]} 48. Bb4 {[%clk 0:01:12]} 48... Nd4
{[%clk 0:00:58.1]} 49. Ra1 {[%clk 0:00:59.1]} 49... Rc4 {[%clk 0:00:46.1]} 50.
Ba5 {[%clk 0:00:54]} 50... Nc6 {[%clk 0:00:43.6]} 51. Rd1+ {[%clk 0:00:52.9]}
51... Ke6 {[%clk 0:00:41.1]} 52. Be1 {[%clk 0:00:50.9]} 52... Nd4 {[%clk
0:00:39]} 53. Rb1 {[%clk 0:00:48.4]} 53... c5 {[%clk 0:00:36.2]} 54. Rb6+ {[%clk
0:00:46.3]} 54... Kf5 {[%clk 0:00:34.5]} 55. f3 {[%clk 0:00:39]} 55... Rc1
{[%clk 0:00:33.6]} 56. Kf2 {[%clk 0:00:36.6]} 56... c4 {[%clk 0:00:29.3]} 57.
Ba5 {[%clk 0:00:31]} 57... Nb3 {[%clk 0:00:26.2]} 58. Bb4 {[%clk 0:00:28]} 58...
Bd4+ {[%clk 0:00:24.5]} 59. Ke2 {[%clk 0:00:26.6]} 59... Bxb6 {[%clk 0:00:24.1]}
60. Be1 {[%clk 0:00:19.7]} 60... Rxe1+ {[%clk 0:00:22.5]} 61. Kxe1 {[%clk
0:00:19.6]} 61... Ba5+ {[%clk 0:00:21.3]} 62. Kd1 {[%clk 0:00:19]} 62... Bc3
{[%clk 0:00:19.9]} 63. Kc2 {[%clk 0:00:18.9]} 63... Be5 {[%clk 0:00:19]} 64. Kd1
{[%clk 0:00:17.9]} 64... Kf4 {[%clk 0:00:18.4]} 65. Ke1 {[%clk 0:00:16.4]} 65...
Kg3 {[%clk 0:00:18.3]} 66. Kf1 {[%clk 0:00:15.8]} 66... c3 {[%clk 0:00:17.8]}
67. Ke2 {[%clk 0:00:15]} 67... c2 {[%clk 0:00:17.7]} 68. Kd3 {[%clk 0:00:14.2]}
68... c1=Q {[%clk 0:00:17.6]} 69. Ke4 {[%clk 0:00:14]} 69... Kxg2 {[%clk
0:00:17.2]} 70. Kd5 {[%clk 0:00:13.9]} 70... Qe3 {[%clk 0:00:16.3]} 71. Ke6
{[%clk 0:00:13.8]} 71... Kxf3 {[%clk 0:00:15.8]} 72. Kd7 {[%clk 0:00:13.7]}
72... Qf4 {[%clk 0:00:15.3]} 73. Ke7 {[%clk 0:00:13.6]} 73... Qd4 {[%clk
0:00:15]} 74. Kf7 {[%clk 0:00:13.5]} 74... Bf4 {[%clk 0:00:14.4]} 75. Ke6 {[%clk
0:00:13.4]} 75... f5 {[%clk 0:00:14.1]} 76. Ke7 {[%clk 0:00:13.3]} 76... g4
{[%clk 0:00:13.8]} 77. Kf7 {[%clk 0:00:13.2]} 77... Qe5 {[%clk 0:00:12.9]} 78.
Kg6 {[%clk 0:00:11.8]} 78... Nc5 {[%clk 0:00:12.8]} 79. Kh7 {[%clk 0:00:10]}
79... Qf6 {[%clk 0:00:11.8]} 80. Kg8 {[%clk 0:00:09.1]} 80... Qe7 {[%clk
0:00:11.7]} 81. Kh8 {[%clk 0:00:08.4]} 81... Ke4 {[%clk 0:00:11.6]} 82. Kg8
{[%clk 0:00:08.3]} 82... Ke5 {[%clk 0:00:11.4]} 83. Kh8 {[%clk 0:00:08.2]} 83...
Kf6 {[%clk 0:00:11]} 84. Kg8 {[%clk 0:00:08.1]} 84... Qg7# {[%clk 0:00:10.4]}
0-1

[Event "Live Chess"]
[Site "Chess.com"]
[Date "2023.05.20"]
[Round "-"]
[White "friarnator"]
[Black "hturner40"]
[Result "1-0"]
[WhiteElo "1963"]
[BlackElo "1821"]
[TimeControl "300"]
[EndTime "10:33:42 PDT"]
[Termination "friarnator won by resignation"]

1. e4 {[%clk 0:04:57.3]} 1... Nc6 {[%clk 0:04:59]} 2. Nf3 {[%clk 0:04:55.2]}
2... e5 {[%clk 0:04:57.9]} 3. d4 {[%clk 0:04:54.5]} 3... exd4 {[%clk 0:04:56.2]}
4. Bc4 {[%clk 0:04:53.7]} 4... Nf6 {[%clk 0:04:53.2]} 5. e5 {[%clk 0:04:52.1]}
5... Ne4 {[%clk 0:04:51.7]} 6. c3 {[%clk 0:04:49.8]} 6... d5 {[%clk 0:04:43.1]}
7. Bb5 {[%clk 0:04:45.9]} 7... dxc3 {[%clk 0:04:38.4]} 8. Nxc3 {[%clk
0:04:36.4]} 8... Nxc3 {[%clk 0:04:35.5]} 9. bxc3 {[%clk 0:04:36.3]} 9... Bc5
{[%clk 0:04:26.8]} 10. Bg5 {[%clk 0:04:33.9]} 10... f6 {[%clk 0:04:18.1]} 11.
exf6 {[%clk 0:04:32.2]} 11... gxf6 {[%clk 0:04:16.8]} 12. Bh6 {[%clk 0:04:24.2]}
12... Qe7+ {[%clk 0:04:09.9]} 13. Kd2 {[%clk 0:04:21.7]} 13... Be6 {[%clk
0:03:25.1]} 14. Re1 {[%clk 0:04:14.8]} 14... O-O-O {[%clk 0:03:02.2]} 15. Bxc6
{[%clk 0:04:13.5]} 15... bxc6 {[%clk 0:03:00.8]} 16. Qa4 {[%clk 0:04:12.7]}
16... d4 {[%clk 0:02:36.4]} 17. c4 {[%clk 0:03:58.5]} 17... Kd7 {[%clk
0:02:23.9]} 18. Re4 {[%clk 0:03:42.5]} 18... Bb4+ {[%clk 0:02:05.1]} 19. Kd1
{[%clk 0:03:25.3]} 19... Bc3 {[%clk 0:01:59.1]} 20. Rb1 {[%clk 0:03:14.8]} 20...
Qc5 {[%clk 0:01:25]} 21. Bd2 {[%clk 0:02:49.4]} 21... Bf5 {[%clk 0:01:23.1]} 22.
Bxc3 {[%clk 0:02:32.7]} 22... Bxe4 {[%clk 0:01:21.1]} 23. Bb4 {[%clk 0:02:27.3]}
23... Qh5 {[%clk 0:01:09.8]} 24. Rb3 {[%clk 0:02:11.3]} 24... d3 {[%clk
0:01:08.4]} 25. Kd2 {[%clk 0:02:06.2]} 25... Rhg8 {[%clk 0:00:58.9]} 26. Nd4
{[%clk 0:02:01]} 26... Rxg2 {[%clk 0:00:53.8]} 27. Rxd3 {[%clk 0:01:57.2]} 27...
Rxf2+ {[%clk 0:00:44.2]} 28. Ke3 {[%clk 0:01:51.5]} 28... Qh3+ {[%clk
0:00:30.4]} 29. Kxe4 {[%clk 0:01:37.8]} 29... Re8+ {[%clk 0:00:24.1]} 30. Ne6+
{[%clk 0:01:33.4]} 30... Kxe6 {[%clk 0:00:21]} 31. Rxh3 {[%clk 0:01:29.9]} 31...
Kf7+ {[%clk 0:00:18.3]} 32. Kd3 {[%clk 0:01:28.7]} 1-0

[Event "Live Chess"]
[Site "Chess.com"]
[Date "2023.05.20"]
[Round "-"]
[White "LL220284LL"]
[Black "Chesscoach_Golichenko"]
[Result "0-1"]
[WhiteElo "2406"]
[BlackElo "2651"]
[TimeControl "300"]
[EndTime "10:33:44 PDT"]
[Termination "Chesscoach_Golichenko won by resignation"]

1. g3 {[%clk 0:04:58.4]} 1... d5 {[%clk 0:04:58]} 2. Bg2 {[%clk 0:04:58.3]} 2...
g6 {[%clk 0:04:57]} 3. c4 {[%clk 0:04:56.1]} 3... c6 {[%clk 0:04:55.4]} 4. Nf3
{[%clk 0:04:55.6]} 4... Bg7 {[%clk 0:04:50.3]} 5. O-O {[%clk 0:04:55.5]} 5...
Nf6 {[%clk 0:04:49.6]} 6. e3 {[%clk 0:04:54.2]} 6... O-O {[%clk 0:04:45.4]} 7.
b3 {[%clk 0:04:52.8]} 7... dxc4 {[%clk 0:04:32.7]} 8. bxc4 {[%clk 0:04:51.4]}
8... Be6 {[%clk 0:04:28.8]} 9. Qc2 {[%clk 0:04:45.8]} 9... Bf5 {[%clk 0:04:23]}
10. Qb3 {[%clk 0:04:44.5]} 10... Bd3 {[%clk 0:04:15.1]} 11. Re1 {[%clk
0:04:39.1]} 11... Na6 {[%clk 0:04:13.1]} 12. Ne5 {[%clk 0:04:23.1]} 12... Nc5
{[%clk 0:04:05.7]} 13. Qa3 {[%clk 0:04:21.9]} 13... Nfd7 {[%clk 0:04:00.2]} 14.
Bb2 {[%clk 0:04:17.7]} 14... Nxe5 {[%clk 0:03:54.9]} 15. Qxc5 {[%clk 0:04:16.3]}
15... Nf3+ {[%clk 0:03:53.2]} 16. Bxf3 {[%clk 0:04:15.2]} 16... Bxb2 {[%clk
0:03:52.8]} 17. Nc3 {[%clk 0:04:13]} 17... Bxa1 {[%clk 0:03:51.7]} 18. Rxa1
{[%clk 0:04:12.9]} 18... Qd6 {[%clk 0:03:48]} 19. Qg5 {[%clk 0:04:09.2]} 19...
Bxc4 {[%clk 0:03:41.2]} 20. d4 {[%clk 0:04:07.1]} 20... Qf6 {[%clk 0:03:32.5]}
21. Qxf6 {[%clk 0:04:02.9]} 21... exf6 {[%clk 0:03:30.7]} 22. Ne4 {[%clk
0:04:02.8]} 22... Kg7 {[%clk 0:03:29]} 23. Nd6 {[%clk 0:04:01.2]} 23... Ba6
{[%clk 0:03:25.6]} 24. Rb1 {[%clk 0:04:00.3]} 24... Rab8 {[%clk 0:03:15.5]} 25.
a4 {[%clk 0:03:56.8]} 25... Rfd8 {[%clk 0:03:13.5]} 26. Ne4 {[%clk 0:03:54.7]}
26... Bd3 {[%clk 0:03:07.6]} 27. Rb4 {[%clk 0:03:50.5]} 27... Bxe4 {[%clk
0:03:04.5]} 28. Bxe4 {[%clk 0:03:50.4]} 28... f5 {[%clk 0:03:01.2]} 29. Bf3
{[%clk 0:03:48]} 29... Rdc8 {[%clk 0:02:52.2]} 30. h4 {[%clk 0:03:46.2]} 30...
b6 {[%clk 0:02:51.1]} 31. Kg2 {[%clk 0:03:44.3]} 31... c5 {[%clk 0:02:50.4]} 32.
dxc5 {[%clk 0:03:43.4]} 32... bxc5 {[%clk 0:02:48.2]} 33. Rc4 {[%clk 0:03:42.5]}
33... Rb4 {[%clk 0:02:47]} 0-1

[Event "Live Chess"]
[Site "Chess.com"]
[Date "2023.05.20"]
[Round "-"]
[White "PLZ909"]
[Black "JoshMcK"]
[Result "0-1"]
[WhiteElo "1405"]
[BlackElo "1538"]
[TimeControl "300"]
[EndTime "10:33:50 PDT"]
[Termination "JoshMcK won by resignation"]

1. d4 {[%clk 0:04:59.2]} 1... d5 {[%clk 0:04:58.3]} 2. Bf4 {[%clk 0:04:58.4]}
2... Nf6 {[%clk 0:04:56.6]} 3. e3 {[%clk 0:04:58]} 3... e6 {[%clk 0:04:56.1]} 4.
Nf3 {[%clk 0:04:57.4]} 4... Bd6 {[%clk 0:04:55.9]} 5. Bg3 {[%clk 0:04:55.3]}
5... O-O {[%clk 0:04:53.9]} 6. Bd3 {[%clk 0:04:54]} 6... c5 {[%clk 0:04:53.5]}
7. Bxh7+ {[%clk 0:04:44.3]} 7... Nxh7 {[%clk 0:04:50.5]} 8. h4 {[%clk
0:04:37.2]} 8... Bxg3 {[%clk 0:04:43.2]} 9. fxg3 {[%clk 0:04:35.6]} 9... cxd4
{[%clk 0:04:41.7]} 10. Qxd4 {[%clk 0:04:28.1]} 10... Nc6 {[%clk 0:04:39.6]} 11.
Qd1 {[%clk 0:04:19.5]} 11... e5 {[%clk 0:04:26.4]} 12. Ng5 {[%clk 0:04:15.2]}
12... Nxg5 {[%clk 0:04:18.2]} 13. hxg5 {[%clk 0:04:14.1]} 13... Qxg5 {[%clk
0:04:17.2]} 14. Ke2 {[%clk 0:04:00.5]} 14... Bg4+ {[%clk 0:04:13.6]} 0-1

[Event "Live Chess"]
[Site "Chess.com"]
[Date "2023.05.20"]
[Round "-"]
[White "Ayush_prahlad_Gupta"]
[Black "flyingpuffins"]
[Result "0-1"]
[WhiteElo "1796"]
[BlackElo "1965"]
[TimeControl "300"]
[EndTime "10:33:52 PDT"]
[Termination "flyingpuffins won on time"]

1. e4 {[%clk 0:04:41.8]} 1... d5 {[%clk 0:04:58.7]} 2. Nc3 {[%clk 0:04:41.6]}
2... dxe4 {[%clk 0:04:56.9]} 3. Nxe4 {[%clk 0:04:37.4]} 3... Bf5 {[%clk
0:04:53.8]} 4. Nc3 {[%clk 0:04:34.4]} 4... Nf6 {[%clk 0:04:42.2]} 5. d3 {[%clk
0:04:34.1]} 5... Nc6 {[%clk 0:04:34.7]} 6. Nf3 {[%clk 0:04:33.5]} 6... e6 {[%clk
0:04:21.8]} 7. Bd2 {[%clk 0:04:32.6]} 7... Bc5 {[%clk 0:04:10.8]} 8. h3 {[%clk
0:04:31.4]} 8... O-O {[%clk 0:04:09.2]} 9. g4 {[%clk 0:04:29.7]} 9... Bg6 {[%clk
0:04:07.4]} 10. Qe2 {[%clk 0:04:28.4]} 10... Nd4 {[%clk 0:04:04.7]} 11. Nxd4
{[%clk 0:04:27]} 11... Qxd4 {[%clk 0:04:01.3]} 12. Bg2 {[%clk 0:04:18.3]} 12...
c6 {[%clk 0:03:52]} 13. O-O-O {[%clk 0:04:15.3]} 13... Bb4 {[%clk 0:03:42.2]}
14. Be3 {[%clk 0:04:08.6]} 14... Qd6 {[%clk 0:03:27.7]} 15. Ne4 {[%clk
0:04:07.3]} 15... Nxe4 {[%clk 0:03:25.6]} 16. dxe4 {[%clk 0:04:07.2]} 16... Qc7
{[%clk 0:03:22.1]} 17. h4 {[%clk 0:04:04.7]} 17... h6 {[%clk 0:03:15.7]} 18. g5
{[%clk 0:04:02.8]} 18... h5 {[%clk 0:03:15]} 19. f4 {[%clk 0:04:01.1]} 19... Qa5
{[%clk 0:03:10]} 20. Kb1 {[%clk 0:03:48.6]} 20... Rfd8 {[%clk 0:03:05.1]} 21.
Bf3 {[%clk 0:03:46.8]} 21... Rxd1+ {[%clk 0:02:59.7]} 22. Rxd1 {[%clk
0:03:44.7]} 22... Rd8 {[%clk 0:02:58.8]} 23. Rh1 {[%clk 0:03:40.9]} 23... Bd2
{[%clk 0:02:54.6]} 24. c3 {[%clk 0:02:51.8]} 24... Bxe3 {[%clk 0:02:39.1]} 25.
Qxe3 {[%clk 0:02:51.7]} 25... Qa4 {[%clk 0:02:32.8]} 26. b3 {[%clk 0:02:05.5]}
26... Qa6 {[%clk 0:02:24.6]} 27. Qc5 {[%clk 0:01:53.5]} 27... Qd3+ {[%clk
0:02:18.8]} 28. Kb2 {[%clk 0:01:50.2]} 28... Qxf3 {[%clk 0:02:17.9]} 29. Rc1
{[%clk 0:01:48.5]} 29... Qxe4 {[%clk 0:02:15.6]} 30. Qxa7 {[%clk 0:01:46.3]}
30... Rd2+ {[%clk 0:02:10.6]} 31. Ka3 {[%clk 0:01:44.8]} 31... Qe2 {[%clk
0:02:01.7]} 32. Qxb7 {[%clk 0:01:32.5]} 32... Rxa2+ {[%clk 0:01:59.6]} 33. Kb4
{[%clk 0:01:30.7]} 33... Qe4+ {[%clk 0:01:53.1]} 34. c4 {[%clk 0:01:28.6]} 34...
Qxf4 {[%clk 0:01:44.5]} 35. Qb8+ {[%clk 0:01:14.7]} 35... Kh7 {[%clk 0:01:43.3]}
36. Qxf4 {[%clk 0:01:12.6]} 36... Bf5 {[%clk 0:00:49.5]} 37. Qd4 {[%clk
0:00:43.2]} 37... Ra8 {[%clk 0:00:43.1]} 38. Qd7 {[%clk 0:00:36.7]} 38... Rb8+
{[%clk 0:00:40.8]} 39. Kc3 {[%clk 0:00:29.4]} 39... c5 {[%clk 0:00:33.4]} 40.
Qxf7 {[%clk 0:00:27.2]} 40... Bg4 {[%clk 0:00:25.5]} 41. g6+ {[%clk 0:00:25.1]}
41... Kh6 {[%clk 0:00:23.8]} 42. Re1 {[%clk 0:00:19.1]} 42... Rh8 {[%clk
0:00:17.8]} 43. Ra1 {[%clk 0:00:16.6]} 43... Bf5 {[%clk 0:00:16.3]} 44. Ra7
{[%clk 0:00:15.5]} 44... Rh7 {[%clk 0:00:03]} 45. Qxg7+ {[%clk 0:00:02.3]} 45...
Rxg7 {[%clk 0:00:01.7]} 46. Rxg7 {[%clk 0:00:02.2]} 46... Kxg7 {[%clk
0:00:01.6]} 47. Kd2 {[%clk 0:00:00.8]} 47... Kh6 {[%clk 0:00:01.5]} 48. Ke3
{[%clk 0:00:00.4]} 48... Kg7 {[%clk 0:00:01.4]} 49. Kf4 {[%clk 0:00:00.2]} 49...
Kg8 {[%clk 0:00:01.3]} 0-1

[Event "Live Chess"]
[Site "Chess.com"]
[Date "2023.05.20"]
[Round "-"]
[White "Dark_Night123"]
[Black "Albul"]
[Result "1-0"]
[WhiteElo "1582"]
[BlackElo "2166"]
[TimeControl "300"]
[EndTime "10:33:53 PDT"]
[Termination "Dark_Night123 won by resignation"]

1. e4 {[%clk 0:04:58.8]} 1... d5 {[%clk 0:04:57.9]} 2. exd5 {[%clk 0:04:58]}
2... Nf6 {[%clk 0:04:57.3]} 3. Nc3 {[%clk 0:04:57]} 3... Nxd5 {[%clk 0:04:56.3]}
4. Nxd5 {[%clk 0:04:56.4]} 4... Qxd5 {[%clk 0:04:55]} 5. Nf3 {[%clk 0:04:56]}
5... Bg4 {[%clk 0:04:53.8]} 6. Be2 {[%clk 0:04:55.4]} 6... Nc6 {[%clk
0:04:53.4]} 7. h3 {[%clk 0:04:54.2]} 7... Bh5 {[%clk 0:04:51.5]} 8. O-O {[%clk
0:04:53.3]} 8... O-O-O {[%clk 0:04:50]} 9. d3 {[%clk 0:04:50.6]} 9... e5 {[%clk
0:04:48.7]} 10. Be3 {[%clk 0:04:48.5]} 10... e4 {[%clk 0:04:41.7]} 11. dxe4
{[%clk 0:04:46.8]} 11... Qxe4 {[%clk 0:04:40.9]} 12. Qc1 {[%clk 0:04:34.2]}
12... Bd6 {[%clk 0:04:29.5]} 13. Rd1 {[%clk 0:04:32.6]} 13... Rhe8 {[%clk
0:04:03.6]} 14. Bd3 {[%clk 0:04:26.4]} 14... Qe7 {[%clk 0:03:49.9]} 15. Nd4
{[%clk 0:04:22.9]} 15... Nxd4 {[%clk 0:03:43.5]} 16. Bxd4 {[%clk 0:04:22.8]}
16... Bxd1 {[%clk 0:03:41.7]} 17. Qxd1 {[%clk 0:04:20.1]} 17... Bc5 {[%clk
0:03:34.4]} 18. Bxg7 {[%clk 0:04:12.9]} 18... Rg8 {[%clk 0:03:31]} 19. Bc3
{[%clk 0:03:51.2]} 19... Qh4 {[%clk 0:03:07.3]} 20. Qf3 {[%clk 0:03:44]} 20...
Rg3 {[%clk 0:02:38.4]} 21. Qf5+ {[%clk 0:03:28.9]} 21... Rd7 {[%clk 0:02:31.6]}
22. Qxc5 {[%clk 0:03:19.9]} 22... Qxh3 {[%clk 0:02:20.2]} 23. Be4 {[%clk
0:02:58.3]} 23... f5 {[%clk 0:02:07.4]} 24. fxg3 {[%clk 0:02:53.9]} 1-0

[Event "Live Chess"]
[Site "Chess.com"]
[Date "2023.05.20"]
[Round "-"]
[White "CheckThis4"]
[Black "Hussamalhaidar"]
[Result "1-0"]
[WhiteElo "2546"]
[BlackElo "984"]
[TimeControl "300"]
[EndTime "10:34:02 PDT"]
[Termination "CheckThis4 won on time"]

1. d4 {[%clk 0:04:57.9]} 1... e5 {[%clk 0:04:56.4]} 2. dxe5 {[%clk 0:04:56.6]}
2... d6 {[%clk 0:04:55.5]} 3. Nf3 {[%clk 0:04:55.3]} 3... Nc6 {[%clk 0:04:50.8]}
4. Nc3 {[%clk 0:04:43.3]} 4... Bg4 {[%clk 0:04:47.3]} 5. Bg5 {[%clk 0:04:34.6]}
5... f6 {[%clk 0:04:40.8]} 6. exf6 {[%clk 0:04:30.3]} 6... gxf6 {[%clk
0:04:36.9]} 7. Bh4 {[%clk 0:04:26.2]} 7... Bg7 {[%clk 0:04:19]} 8. e3 {[%clk
0:04:20.9]} 8... Qd7 {[%clk 0:04:04]} 9. h3 {[%clk 0:04:16.8]} 9... Bh5 {[%clk
0:03:57.2]} 10. Bb5 {[%clk 0:04:14.1]} 10... a6 {[%clk 0:03:51]} 11. Ba4 {[%clk
0:04:13.2]} 11... O-O-O {[%clk 0:03:42.1]} 12. g4 {[%clk 0:04:05.6]} 12... Bf7
{[%clk 0:03:34.4]} 13. Nd4 {[%clk 0:04:02.7]} 13... Re8 {[%clk 0:03:15.8]} 14.
Qd3 {[%clk 0:03:48.6]} 14... Nge7 {[%clk 0:02:44.2]} 15. O-O-O {[%clk
0:03:38.1]} 15... Bg6 {[%clk 0:02:15.2]} 16. Qc4 {[%clk 0:03:28.2]} 16... Bf7
{[%clk 0:01:56.6]} 17. Qxf7 {[%clk 0:03:24.2]} 17... Rhg8 {[%clk 0:01:34.7]} 18.
Nxc6 {[%clk 0:03:09.1]} 18... bxc6 {[%clk 0:01:31.1]} 19. Ne4 {[%clk 0:02:52.9]}
19... Ref8 {[%clk 0:01:19.3]} 20. Qc4 {[%clk 0:02:48.5]} 20... d5 {[%clk
0:01:14.9]} 21. Qxa6+ {[%clk 0:02:46]} 21... Kd8 {[%clk 0:01:09.8]} 22. Nc5
{[%clk 0:02:42.9]} 22... Qc8 {[%clk 0:01:01.2]} 23. Nb7+ {[%clk 0:02:41.9]}
23... Ke8 {[%clk 0:00:56.1]} 24. Bxc6+ {[%clk 0:02:37.3]} 24... Nxc6 {[%clk
0:00:53.1]} 25. Qxc6+ {[%clk 0:02:37.2]} 25... Qd7 {[%clk 0:00:48.7]} 26. Qxd5
{[%clk 0:02:25.8]} 26... Qxd5 {[%clk 0:00:45.8]} 27. Rxd5 {[%clk 0:02:25.7]}
27... Kf7 {[%clk 0:00:39.9]} 28. Rd7+ {[%clk 0:02:23.2]} 28... Kg6 {[%clk
0:00:37.2]} 29. f4 {[%clk 0:02:20.7]} 29... h6 {[%clk 0:00:34.8]} 30. f5+ {[%clk
0:02:19.6]} 30... Kh7 {[%clk 0:00:31.4]} 31. Rhd1 {[%clk 0:02:19.1]} 31... Rb8
{[%clk 0:00:26.4]} 32. Rxc7 {[%clk 0:02:17.8]} 32... Rgf8 {[%clk 0:00:16.5]} 33.
Rdd7 {[%clk 0:02:15.5]} 33... Rxb7 {[%clk 0:00:13.5]} 34. Rxb7 {[%clk
0:02:13.5]} 34... Kh8 {[%clk 0:00:10.5]} 35. Rxg7 {[%clk 0:02:10.8]} 35... h5
{[%clk 0:00:07.1]} 36. Rh7+ {[%clk 0:02:09.6]} 1-0

[Event "Live Chess"]
[Site "Chess.com"]
[Date "2023.05.20"]
[Round "-"]
[White "kenn48"]
[Black "JohanKjeldahl"]
[Result "0-1"]
[WhiteElo "1310"]
[BlackElo "1753"]
[TimeControl "300"]
[EndTime "10:34:03 PDT"]
[Termination "JohanKjeldahl won by resignation"]

1. g4 {[%clk 0:04:53.1]} 1... d5 {[%clk 0:04:56.4]} 2. Bg2 {[%clk 0:04:50.1]}
2... Bxg4 {[%clk 0:04:54.6]} 3. Nc3 {[%clk 0:04:46.3]} 3... c6 {[%clk
0:04:50.9]} 4. h3 {[%clk 0:04:43.8]} 4... Bh5 {[%clk 0:04:48.1]} 5. Nf3 {[%clk
0:04:40.6]} 5... Nf6 {[%clk 0:04:45.2]} 6. d4 {[%clk 0:04:30.5]} 6... Nbd7
{[%clk 0:04:41.2]} 7. Bg5 {[%clk 0:04:27.5]} 7... e6 {[%clk 0:04:36.1]} 8. Na4
{[%clk 0:04:21.2]} 8... Bd6 {[%clk 0:04:33.4]} 9. Qd3 {[%clk 0:04:03.5]} 9...
Qa5+ {[%clk 0:04:27.1]} 10. Nc3 {[%clk 0:03:58.3]} 10... h6 {[%clk 0:04:22]} 11.
Bd2 {[%clk 0:03:42.4]} 11... Bg6 {[%clk 0:04:19.5]} 12. Qe3 {[%clk 0:03:24.6]}
12... Qb6 {[%clk 0:04:09.6]} 13. O-O {[%clk 0:03:16]} 13... O-O {[%clk
0:03:58.3]} 14. Nh4 {[%clk 0:03:07.5]} 14... Bxc2 {[%clk 0:03:53]} 15. Qf3
{[%clk 0:02:21.3]} 15... Be4 {[%clk 0:03:46.4]} 16. Nxe4 {[%clk 0:02:18.1]}
16... Nxe4 {[%clk 0:03:38.7]} 17. Bxh6 {[%clk 0:02:06.6]} 17... gxh6 {[%clk
0:03:23.3]} 18. Qg4+ {[%clk 0:02:04]} 18... Kh7 {[%clk 0:03:16.8]} 19. Bxe4+
{[%clk 0:01:57.1]} 19... dxe4 {[%clk 0:03:15.6]} 20. Qxe4+ {[%clk 0:01:55.2]}
20... Kh8 {[%clk 0:03:07.7]} 21. Ng6+ {[%clk 0:01:48.8]} 21... fxg6 {[%clk
0:03:00.5]} 22. Qxg6 {[%clk 0:01:47.3]} 22... Qxd4 {[%clk 0:02:58]} 23. Qxe6
{[%clk 0:01:38.4]} 23... Rg8+ {[%clk 0:02:51.9]} 24. Kh1 {[%clk 0:01:35.3]}
24... Qd5+ {[%clk 0:02:49.9]} 25. Qxd5 {[%clk 0:01:30.5]} 25... cxd5 {[%clk
0:02:49]} 26. Rad1 {[%clk 0:01:25.4]} 26... Nf6 {[%clk 0:02:47.6]} 27. f3 {[%clk
0:01:21.3]} 27... Rae8 {[%clk 0:02:45.7]} 28. e4 {[%clk 0:01:18.8]} 28... Rg3
{[%clk 0:02:23.3]} 29. f4 {[%clk 0:00:53.3]} 29... Rxe4 {[%clk 0:02:12.9]} 30.
Kh2 {[%clk 0:00:39.4]} 30... Ree3 {[%clk 0:02:06.4]} 0-1